[Event "HUN-chT Youth-Children 2018"]
[Site "Zalakaros"]
[Date "2018.07.27"]
[Round "3"]
[White "Gombocz, Zsofia"]
[Black "Juhasz, Judit"]
[Result "1-0"]
[ECO "B31"]
[WhiteElo "1996"]
[BlackElo "1877"]
[Annotator "NA"]
[PlyCount "133"]
[EventDate "2018.07.26"]
[EventType "team-tourn"]
[EventCountry "HUN"]
[SourceTitle "playchess.com"]
[Source "ChessBase"]
[SourceQuality "1"]
[TimeControl "5400+30"]

1. e4 {[%emt 0:00:00]} c5 {[%emt 0:00:06]} 2. Nf3 {[%emt 0:00:00]} Nc6 {[%emt 0:00:14]} 3. Bb5 {[%emt 0:00:13]} g6 {[%emt 0:00:15]} 4. O-O {[%emt 0:00:24]} Bg7 {[%emt 0:00:21]} 5. Re1 {[%emt 0:00:43]} e5 {[%emt 0:00:20]} 6. c3 {[%emt 0:01:48]} Nge7 {[%emt 0:01:24]} 7. d4 {[%emt 0:13:22]} cxd4 {[%emt 0:01:56]} 8. cxd4 {[%emt 0:00:13]} exd4 {[%emt 0:07:48]} 9. Na3 {[%emt 0:10:36] B31: Sicilian: 2...Nc6 3 Bb5 g6} a6 {[%emt 0:06:54]} 10. Bf1 {[%emt 0:09:32]} d6 {[%emt 0:09:02]} 11. h3 {[%emt 0:09:04]} O-O {[%emt 0:04:47]} 12. Bf4 {[%emt 0:07:46]} Be5 $146 {[%emt 0:30:00]} (12... h6 $11) ({Predecessor:} 12... Be6 13. Qd2 Re8 14. Nc2 Qb6 15. Bxd6 Rad8 16. Ba3 a5 17. Bd3 h6 {0-1 (53) Gallegos,C (2430)-Alvarez Marquez,J (2385) San Cristobal 2008}) 13. Bh6 {[%emt 0:10:58]} Re8 {[%emt 0:00:20]} 14. Bc4 {[%emt 0:01:53]} Be6 {[%emt 0:05:11]} 15. Bxe6 {[%emt 0:03:34]} fxe6 {[%emt 0:00:05]} 16. Qb3 {[%emt 0:00:18]} Qd7 {[%emt 0:02:04]} 17. Nc4 {[%emt 0:06:50]} Nc8 {[%emt 0:01:34]} 18. Nfxe5 {[%emt 0:07:01]} dxe5 {[%emt 0:03:35]} 19. Qg3 {[%emt 0:00:30]} Qc7 {[%emt 0:01:01]} 20. h4 {[%emt 0:01:53]} b5 {[%emt 0:04:02]} 21. Nd2 {[%emt 0:00:18]} Nd6 {[%emt 0:03:08]} 22. Nf3 {[%emt 0:02:54]} Nf7 {[%emt 0:00:30]} 23. Bd2 {[%emt 0:00:21]} Qe7 {[%emt 0:01:07]} 24. h5 {[%emt 0:01:31]} Qf6 {[%emt 0:00:54]} 25. Rf1 {[%emt 0:00:54]} (25. Rac1 $14 Rec8 26. Nh2) 25... Kh8 {[%emt 0:01:15]} 26. Ng5 {[%emt 0:01:50]} Rg8 {[%emt 0:06:29]} 27. Nxf7+ {[%emt 0:00:20]} Qxf7 {[%emt 0:00:08]} 28. h6 {[%emt 0:00:04]} g5 $2 {[%emt 0:01:52]} (28... Qd7 $14) 29. Rac1 {[%emt 0:00:16]} Rgc8 {[%emt 0:01:34]} 30. Bxg5 {[%emt 0:00:44]} Qg6 {[%emt 0:03:28]} 31. f4 {[%emt 0:01:59]} Rg8 {[%emt 0:02:26]} 32. Qh4 $18 {[%emt 0:01:27]} ({Weaker is} 32. Rxc6 exf4 33. Bxf4 (33. Qxf4 Qxg5 34. Qxg5 Rxg5 $16) 33... Qxg3 $16) 32... Raf8 {[%emt 0:00:50]} 33. Rxc6 {[%emt 0:03:41]} exf4 {[%emt 0:00:04]} 34. Rxf4 {[%emt 0:00:51]} Rxf4 {[%emt 0:00:40]} 35. Qxf4 {[%emt 0:00:04]} Qxg5 {[%emt 0:00:47]} 36. Qxg5 {[%emt 0:00:19]} Rxg5 {[%emt 0:00:03]} 37. Rxe6 {[%emt 0:00:11]} Kg8 {[%emt 0:00:15]} 38. Rd6 {[%emt 0:00:50]} Re5 {[%emt 0:01:17]} 39. Rxd4 {[%emt 0:00:20]} Re6 {[%emt 0:00:02]} 40. Kf2 {[%emt 0:01:01]} Kf7 {[%emt 0:01:18]} 41. Kf3 {[%emt 0:01:20]} Rxh6 {[%emt 0:00:27]} 42. Rd2 {[%emt 0:01:08]} Ke6 {[%emt 0:00:44]} 43. Ke3 {[%emt 0:01:22]} Ke5 {[%emt 0:00:59]} 44. Rd5+ {[%emt 0:00:54]} Ke6 {[%emt 0:00:07]} 45. Kf4 {[%emt 0:00:14]} Rf6+ {[%emt 0:00:56]} 46. Rf5 {[%emt 0:00:20]} Rh6 {[%emt 0:00:18]} 47. b3 {[%emt 0:00:34]} Rh4+ {[%emt 0:00:45]} 48. Kf3 {[%emt 0:00:07]} Rh1 {[%emt 0:00:08]} 49. Rc5 {[%emt 0:00:34]} Kd6 {[%emt 0:00:38]} 50. Rc2 {[%emt 0:00:15]} Rf1+ {[%emt 0:00:44]} 51. Rf2 {[%emt 0:00:31]} Rc1 {[%emt 0:00:15]} 52. Kf4 {[%emt 0:00:12]} Ke6 {[%emt 0:00:41]} 53. g4 {[%emt 0:00:17]} Rc7 {[%emt 0:00:19]} 54. Rh2 {[%emt 0:00:52]} Rf7+ {[%emt 0:00:39]} 55. Ke3 {[%emt 0:00:31]} Rg7 {[%emt 0:00:30]} 56. Rh6+ {[%emt 0:00:17]} Ke5 {[%emt 0:00:08]} 57. Rh5+ {[%emt 0:00:11]} Ke6 {[%emt 0:00:09]} 58. Kf4 {[%emt 0:00:10]} Rf7+ {[%emt 0:00:35]} 59. Rf5 {[%emt 0:00:38]} Rc7 {[%emt 0:00:57]} 60. g5 {[%emt 0:00:25]} Rc1 {[%emt 0:00:42]} 61. Rf6+ {[%emt 0:00:24]} Ke7 {[%emt 0:00:16]} 62. Rxa6 {[%emt 0:00:08]} Rf1+ {[%emt 0:00:20]} 63. Ke5 {[%emt 0:00:08]} Rg1 {[%emt 0:00:19]} 64. Ra7+ {[%emt 0:00:15]} Kf8 {[%emt 0:00:16]} 65. Rxh7 {[%emt 0:00:12]} Rxg5+ {[%emt 0:00:36]} 66. Kf6 {[%emt 0:00:09]} Rg8 {[%emt 0:00:03]} 67. Rb7 {[%emt 0:00:10]} 1-0

[Event "HUN-chT Youth-Children 2018"]
[Site "Zalakaros"]
[Date "2018.07.27"]
[Round "3"]
[White "Hatala, Csaba Laszlo"]
[Black "Ocztos, Dominik"]
[Result "1-0"]
[ECO "C58"]
[WhiteElo "1958"]
[BlackElo "1910"]
[Annotator "NA"]
[PlyCount "105"]
[EventDate "2018.07.26"]
[EventType "team-tourn"]
[EventCountry "HUN"]
[SourceTitle "playchess.com"]
[Source "ChessBase"]
[SourceQuality "1"]
[TimeControl "5400+30"]

1. e4 {[%emt 0:00:00]} e5 {[%emt 0:00:07]} 2. Nf3 {[%emt 0:00:00]} Nc6 {[%emt 0:00:12]} 3. Bc4 {[%emt 0:00:00]} Nf6 {[%emt 0:00:20]} 4. Ng5 {[%emt 0:00:02]} d5 {[%emt 0:00:11]} 5. exd5 {[%emt 0:00:12]} Na5 {[%emt 0:00:01]} 6. Bb5+ {[%emt 0:00:18]} c6 {[%emt 0:00:08]} 7. dxc6 {[%emt 0:00:11]} bxc6 {[%emt 0:00:09]} 8. Bd3 {[%emt 0:01:07]} Bd6 {[%emt 0:01:25] C58: Two Knights: 4 Ng5 d5 5 exd5 Na5 sidelines} (8... Nd5 9. Nf3 Bd6 10. O-O O-O 11. Re1 f5 12. Nxe5 Qf6 13. Nf3 g5 14. g3 f4 15. Nc3 fxg3 16. hxg3 Nxc3 17. dxc3 {½-½ (52) Kovalev,V (2639)-Demchenko,A (2660) Riadh 2017}) 9. Nc3 {[%emt 0:06:19]} h6 {[%emt 0:01:48]} 10. Nge4 {[%emt 0:00:30]} Bc7 $146 {[%emt 0:01:20]} ({Predecessor:} 10... Nb7 11. Nxf6+ Qxf6 12. Ne4 Qd8 13. b3 Nc5 14. Nxc5 Bxc5 15. Qf3 O-O 16. O-O {1-0 (54) Kompaan,R (1511)-Fan,Z (1424) Borne 2013}) 11. Nxf6+ {[%emt 0:02:11]} Qxf6 {[%emt 0:00:10]} 12. Be4 {[%emt 0:07:45]} O-O {[%emt 0:00:35]} 13. O-O {[%emt 0:03:11]} Qd6 {[%emt 0:00:35]} 14. g3 {[%emt 0:02:14]} Bh3 {[%emt 0:00:26]} 15. Re1 {[%emt 0:08:09]} f5 {[%emt 0:00:43]} 16. Bf3 {[%emt 0:06:19]} e4 {[%emt 0:01:57]} 17. Bg2 {[%emt 0:06:27]} Bxg2 {[%emt 0:02:03]} 18. Kxg2 {[%emt 0:00:07]} Rae8 {[%emt 0:04:12]} 19. d3 {[%emt 0:06:40]} Qg6 {[%emt 0:00:42]} 20. Kh1 {[%emt 0:04:55]} c5 {[%emt 0:04:52]} 21. Nd5 {[%emt 0:11:31]} Bb8 {[%emt 0:13:56]} 22. Bf4 {[%emt 0:03:44]} ({Besser ist} 22. Be3 $16) 22... Qc6 {[%emt 0:02:16]} 23. dxe4 {[%emt 0:01:22]} fxe4 {[%emt 0:02:01]} (23... Bxf4 $16 24. gxf4 (24. Nxf4 fxe4 25. Kg1 g5 $14) 24... fxe4) 24. Bxb8 {[%emt 0:03:09]} e3 {[%emt 0:02:41]} 25. fxe3 {[%emt 0:05:46]} ({Weaker is} 25. Bxa7 exf2 26. Rf1 (26. Rxe8 Qxe8 27. Nf6+ Rxf6 $17) 26... Re5 $19) 25... Rxb8 {[%emt 0:00:23]} 26. Kg1 {[%emt 0:01:09]} Rbe8 {[%emt 0:02:33]} 27. b3 {[%emt 0:04:09]} Nb7 {[%emt 0:03:25]} 28. e4 {[%emt 0:03:23]} Nd6 {[%emt 0:04:04]} 29. Qd3 {[%emt 0:06:52]} Re5 {[%emt 0:01:29]} (29... c4 $16 {keeps fighting.} 30. Qd4 Nb5 31. Qxc4 Qxc4 32. bxc4 Nd4) 30. c4 {[%emt 0:01:10]} Rfe8 {[%emt 0:00:50]} 31. Nc3 {[%emt 0:00:09]} Nf7 {[%emt 0:07:10]} 32. Rad1 {[%emt 0:01:41]} Qg6 {[%emt 0:02:25]} 33. h4 {[%emt 0:00:57]} Qg4 {[%emt 0:04:55]} (33... Rh5 $16) 34. Kg2 $18 {[%emt 0:01:10]} R5e6 {[%emt 0:06:22]} 35. Qf3 {[%emt 0:01:16]} Qg6 {[%emt 0:01:21]} 36. Rf1 {[%emt 0:00:56]} Re5 {[%emt 0:04:42]} 37. Rd2 {[%emt 0:01:06]} Nd6 {[%emt 0:01:43]} 38. Re2 {[%emt 0:00:33]} Qe6 {[%emt 0:09:50]} 39. Rff2 {[%emt 0:00:25]} g6 {[%emt 0:02:52]} 40. Qf6 {[%emt 0:00:31]} Nxe4 {[%emt 0:01:07]} 41. Qxe6+ {[%emt 0:00:09]} R5xe6 {[%emt 0:00:09]} 42. Nxe4 {[%emt 0:00:06]} Rxe4 {[%emt 0:00:05]} 43. Rxe4 {[%emt 0:00:04]} Rxe4 {[%emt 0:00:09]} 44. Rd2 {[%emt 0:00:33]} Re7 {[%emt 0:00:32]} 45. Kf3 {[%emt 0:00:26]} Kf7 {[%emt 0:00:41]} 46. Rd6 {[%emt 0:00:17]} Rc7 {[%emt 0:00:57]} 47. h5 {[%emt 0:00:31]} gxh5 {[%emt 0:02:53]} 48. Rxh6 {[%emt 0:00:11]} Kg7 {[%emt 0:00:42]} 49. Rxh5 {[%emt 0:00:12]} a5 {[%emt 0:00:57]} 50. Ke4 {[%emt 0:00:27]} a4 {[%emt 0:02:13]} 51. Rf5 {[%emt 0:00:18]} axb3 {[%emt 0:00:30]} 52. axb3 {[%emt 0:00:06]} Rb7 {[%emt 0:00:09]} 53. Rf3 {[%emt 0:00:10]} 1-0

[Event "HUN-chT Youth-Children 2018"]
[Site "Zalakaros"]
[Date "2018.07.27"]
[Round "3"]
[White "Birovecz, Ben Jordan"]
[Black "Losonczi, Marcell"]
[Result "0-1"]
[ECO "A53"]
[WhiteElo "1901"]
[BlackElo "2149"]
[Annotator "NA"]
[PlyCount "62"]
[EventDate "2018.07.26"]
[EventType "team-tourn"]
[EventCountry "HUN"]
[SourceTitle "playchess.com"]
[Source "ChessBase"]
[SourceQuality "1"]
[TimeControl "5400+30"]

1. d4 {[%emt 0:00:00]} Nf6 {[%emt 0:00:08]} 2. c4 {[%emt 0:00:00]} d6 {[%emt 0:00:07]} 3. Nc3 {[%emt 0:00:00]} Nbd7 {[%emt 0:00:07]} 4. e4 {[%emt 0:00:00]} e5 {[%emt 0:00:06]} 5. d5 {[%emt 0:00:00]} Nc5 {[%emt 0:00:10]} 6. f3 {[%emt 0:00:29]} Be7 {[%emt 0:01:02] A53: Old Indian Defence without Nf3} (6... a5 7. Be3 Be7 8. Nge2 c6 9. Nc1 O-O 10. Nd3 cxd5 11. cxd5 b6 12. Qd2 Nh5 13. O-O-O h6 14. g4 Nxd3+ 15. Bxd3 Nf4 16. Kb1 Nxd3 17. Qxd3 {1-0 (38) Battaglini,G (2473)-Smirin,I (2644) Jerusalem 2017}) 7. b4 {[%emt 0:05:16]} Ncd7 {[%emt 0:00:28]} 8. Be3 {[%emt 0:00:12]} h5 $146 {[%emt 0:03:19]} ({Predecessor:} 8... Nh5 9. Nh3 Nf8 10. g4 Bh4+ 11. Kd2 Nf4 12. Nxf4 exf4 13. Bxf4 a5 14. b5 {½-½ (63) Kis,J (2175)-Sutorikhin,V (2365) Paks 1998}) 9. Nh3 {[%emt 0:04:37]} O-O {[%emt 0:06:03]} 10. Nf2 {[%emt 0:07:41]} Nh7 {[%emt 0:01:12]} 11. Nd3 {[%emt 0:02:42]} c6 {[%emt 0:17:14]} 12. a3 {[%emt 0:05:39]} Bg5 {[%emt 0:05:50]} 13. Bf2 {[%emt 0:00:16]} Nb6 {[%emt 0:02:15]} 14. Qb3 {[%emt 0:01:03]} cxd5 {[%emt 0:08:42]} 15. cxd5 {[%emt 0:10:08]} Bd7 {[%emt 0:01:00]} 16. h4 {[%emt 0:05:48]} Bh6 {[%emt 0:02:09]} 17. Nb2 {[%emt 0:05:35]} Rc8 {[%emt 0:06:33]} 18. Bd3 {[%emt 0:01:15]} Qc7 {[%emt 0:01:35]} 19. Ne2 {[%emt 0:00:18]} f5 $1 {[%emt 0:01:03]} 20. O-O {[%emt 0:06:58]} (20. Ng3 $11 {remains equal.}) 20... fxe4 {[%emt 0:01:06]} 21. Bxe4 {[%emt 0:00:35]} Nf6 {[%emt 0:00:38]} 22. Rad1 {[%emt 0:17:37]} Nxe4 {[%emt 0:00:32]} 23. fxe4 {[%emt 0:00:08]} Qc2 {[%emt 0:02:34]} 24. Nd4 {[%emt 0:16:57]} exd4 {[%emt 0:01:40]} 25. Qxc2 {[%emt 0:00:06]} Rxc2 {[%emt 0:00:03]} 26. Bxd4 {[%emt 0:00:09]} Rxf1+ {[%emt 0:01:15]} 27. Rxf1 {[%emt 0:04:31]} Re2 {[%emt 0:05:36]} 28. Bxb6 {[%emt 0:03:07]} axb6 {[%emt 0:00:05]} 29. Nc4 {[%emt 0:00:08]} Rxe4 {[%emt 0:00:08]} 30. Nxd6 {[%emt 0:00:07]} Be3+ {[%emt 0:00:03]} 31. Kh2 {[%emt 0:00:59]} Bf4+ $19 {[%emt 0:00:05]} 0-1

[Event "HUN-chT Youth-Children 2018"]
[Site "Zalakaros"]
[Date "2018.07.27"]
[Round "3"]
[White "Monduk, Ferenc"]
[Black "Kovacs, Bence"]
[Result "1-0"]
[ECO "A56"]
[WhiteElo "1870"]
[BlackElo "1994"]
[Annotator "NA"]
[PlyCount "99"]
[EventDate "2018.07.26"]
[EventType "team-tourn"]
[EventCountry "HUN"]
[SourceTitle "playchess.com"]
[Source "ChessBase"]
[SourceQuality "1"]
[TimeControl "5400+30"]

1. d4 {[%emt 0:00:00]} Nf6 {[%emt 0:00:07]} 2. c4 {[%emt 0:00:00]} c5 {[%emt 0:00:05]} 3. e3 {[%emt 0:00:00]} g6 {[%emt 0:11:28]} 4. Nc3 {[%emt 0:00:03]} Bg7 {[%emt 0:00:40]} 5. Nf3 {[%emt 0:00:16]} O-O {[%emt 0:03:40]} 6. Be2 {[%emt 0:00:10]} cxd4 {[%emt 0:11:04]} 7. exd4 {[%emt 0:04:08]} d5 {[%emt 0:00:06]} 8. c5 {[%emt 0:05:21]} b6 {[%emt 0:15:08] E61: King's Indian: Early deviations for White, including Smyslov System} 9. O-O {[%emt 0:11:10]} bxc5 {[%emt 0:12:46]} (9... Ne4 10. cxb6 axb6 11. Qb3 Nc6 12. Be3 Na5 13. Qb4 Nc6 14. Qb3 Na5 15. Qb4 Nc6 16. Qb3 {½-½ (16) Srinath,R (2278)-Stankovic,M (2409) Novi Sad 2018}) 10. dxc5 {[%emt 0:01:34]} Na6 $146 {[%emt 0:00:41]} ({Predecessor:} 10... Nc6 11. Qa4 Bd7 12. Bb5 Qc7 13. Bf4 Qc8 14. Ne5 Nxe5 15. Bxe5 Bxb5 16. Qxb5 {1-0 (41) Byway,P (2115)-Timson,P (2123) Aberystwyth 2014}) 11. Bxa6 {[%emt 0:14:26]} Bxa6 {[%emt 0:00:05]} 12. Re1 {[%emt 0:00:21]} Rc8 {[%emt 0:11:20]} 13. Qa4 {[%emt 0:12:48]} Bd3 {[%emt 0:01:33]} 14. Ne5 {[%emt 0:03:23]} Bf5 {[%emt 0:07:32]} 15. Nc6 {[%emt 0:07:45]} Rxc6 {[%emt 0:02:21]} 16. Qxc6 {[%emt 0:00:12]} d4 {[%emt 0:01:14]} 17. Nd1 {[%emt 0:02:47]} Qa5 {[%emt 0:03:47]} 18. Re2 {[%emt 0:09:25]} Rc8 {[%emt 0:01:25]} 19. Qb7 {[%emt 0:00:15]} Qxc5 {[%emt 0:00:51]} 20. Qxe7 {[%emt 0:04:07]} Qb5 {[%emt 0:02:17]} 21. Qe5 $2 {[%emt 0:05:05]} (21. a4 $17 Qa6 22. Re1) 21... Nd5 {[%emt 0:00:55]} 22. a4 {[%emt 0:01:54]} Qxa4 {[%emt 0:10:33]} 23. Rxa4 {[%emt 0:00:06]} Bxe5 {[%emt 0:00:04]} 24. Rxe5 {[%emt 0:00:07]} Rxc1 {[%emt 0:00:06]} 25. Rxd4 {[%emt 0:00:05]} Nb4 $18 {[%emt 0:02:10]} 26. Kf1 {[%emt 0:04:57]} Nc6 {[%emt 0:00:55]} 27. Re8+ {[%emt 0:00:15]} Kg7 {[%emt 0:00:01]} 28. Rd6 {[%emt 0:00:31]} Bc2 {[%emt 0:00:52]} 29. Ke2 {[%emt 0:00:40]} Ba4 {[%emt 0:00:33]} 30. Re4 {[%emt 0:00:50]} Bxd1+ {[%emt 0:00:31]} 31. Rxd1 {[%emt 0:00:06]} Rc2+ {[%emt 0:00:32]} 32. Rd2 {[%emt 0:00:03]} Rc5 {[%emt 0:00:06]} 33. Re8 {[%emt 0:01:46]} a5 {[%emt 0:00:20]} 34. Ra8 {[%emt 0:00:34]} h5 {[%emt 0:00:29]} 35. Kd1 {[%emt 0:00:28]} Nb4 {[%emt 0:00:29]} 36. g3 {[%emt 0:00:51]} Nd5 {[%emt 0:00:48]} 37. Ke2 {[%emt 0:00:38]} Nb6 {[%emt 0:00:39]} 38. Ra6 {[%emt 0:00:28]} Nd5 {[%emt 0:00:32]} 39. Ra7 {[%emt 0:00:31]} Kf6 {[%emt 0:00:34]} 40. f4 {[%emt 0:00:26]} h4 {[%emt 0:00:19]} 41. Kf3 {[%emt 0:00:18]} hxg3 {[%emt 0:00:15]} 42. hxg3 {[%emt 0:00:01]} Rb5 {[%emt 0:01:00]} 43. Rd3 {[%emt 0:00:30]} Ke6 {[%emt 0:00:24]} 44. b3 {[%emt 0:00:30]} Rc5 {[%emt 0:00:24]} 45. g4 {[%emt 0:00:32]} Rb5 {[%emt 0:00:30]} 46. Ra8 {[%emt 0:01:02]} Nb4 {[%emt 0:00:47]} 47. Re3+ {[%emt 0:00:23]} Kf6 {[%emt 0:00:15]} 48. g5+ {[%emt 0:00:34]} Kg7 {[%emt 0:00:20]} 49. Ree8 {[%emt 0:00:02]} f5 {[%emt 0:00:26]} 50. Ra7+ {[%emt 0:00:05]} 1-0

[Event "HUN-chT Youth-Children 2018"]
[Site "Zalakaros"]
[Date "2018.07.27"]
[Round "3"]
[White "Lengyel, Andrea"]
[Black "Pasztor, Balazs"]
[Result "0-1"]
[ECO "A25"]
[WhiteElo "1854"]
[BlackElo "2072"]
[Annotator "NA"]
[PlyCount "121"]
[EventDate "2018.07.26"]
[EventType "team-tourn"]
[EventCountry "HUN"]
[SourceTitle "playchess.com"]
[Source "ChessBase"]
[SourceQuality "1"]
[TimeControl "5400+30"]

1. c4 {[%emt 0:00:00]} e5 {[%emt 0:00:54]} 2. Nc3 {[%emt 0:03:17]} Nc6 {[%emt 0:01:21]} 3. e3 {[%emt 0:02:09]} Nge7 {[%emt 0:09:27]} 4. Nf3 {[%emt 0:10:10]} f5 {[%emt 0:11:05]} 5. e4 {[%emt 0:05:15]} d6 {[%emt 0:05:01]} 6. d4 {[%emt 0:16:30]} fxe4 {[%emt 0:04:37]} 7. Nxe4 {[%emt 0:06:13]} Bg4 {[%emt 0:05:08]} 8. d5 {[%emt 0:12:23]} Nd4 {[%emt 0:05:59]} 9. Be2 {[%emt 0:02:48]} Nxe2 {[%emt 0:03:44]} 10. Qxe2 {[%emt 0:00:23]} Nf5 {[%emt 0:04:10]} 11. Qd3 {[%emt 0:08:14]} h6 {[%emt 0:15:48]} 12. h3 {[%emt 0:04:09]} Bxf3 {[%emt 0:01:25]} 13. Qxf3 {[%emt 0:01:21]} g6 {[%emt 0:05:01]} 14. O-O {[%emt 0:06:22]} Be7 {[%emt 0:02:20]} 15. Qd3 {[%emt 0:05:51]} Qd7 {[%emt 0:04:24]} 16. f4 {[%emt 0:04:15]} exf4 {[%emt 0:02:51]} 17. Rxf4 {[%emt 0:02:55]} O-O-O {[%emt 0:03:46]} 18. b3 {[%emt 0:02:38]} Rhf8 {[%emt 0:03:40]} 19. Bb2 {[%emt 0:00:58]} Rde8 {[%emt 0:02:39]} 20. Raf1 {[%emt 0:01:49]} Qd8 {[%emt 0:01:25]} 21. g4 {[%emt 0:00:56]} Nh4 {[%emt 0:00:41]} 22. Nf6 {[%emt 0:01:03]} g5 {[%emt 0:01:30]} 23. Nxe8 {[%emt 0:00:50]} Rxf4 {[%emt 0:01:25]} 24. Ng7 {[%emt 0:00:47]} Qg8 {[%emt 0:01:55]} (24... Qf8 $1 $14) 25. Ne6 {[%emt 0:00:33]} Rf7 {[%emt 0:00:34]} 26. Rxf7 {[%emt 0:00:37]} Qxf7 {[%emt 0:00:14]} 27. Qf1 {[%emt 0:00:10]} Qg6 {[%emt 0:00:57]} 28. Nd4 {[%emt 0:00:45]} Bf6 {[%emt 0:00:33]} 29. Ne6 {[%emt 0:00:33]} Be7 {[%emt 0:00:44]} 30. Nd4 {[%emt 0:00:12]} Qe4 {[%emt 0:00:43]} 31. Qe2 {[%emt 0:00:40]} Qxe2 {[%emt 0:01:24]} 32. Nxe2 {[%emt 0:00:02]} Nf3+ {[%emt 0:00:29]} 33. Kg2 {[%emt 0:00:21]} Ne1+ {[%emt 0:00:23]} 34. Kf1 {[%emt 0:00:31]} Nd3 {[%emt 0:00:25]} 35. Bg7 {[%emt 0:01:07]} Kd7 {[%emt 0:00:43]} 36. Ng3 $11 {[%emt 0:00:37]} ({White should try} 36. Bxh6 $16 c6 37. Nc3) 36... Nf4 {[%emt 0:00:17]} 37. h4 {[%emt 0:00:33]} gxh4 {[%emt 0:00:32]} 38. Bxh6 {[%emt 0:00:21]} Nxd5 {[%emt 0:00:34]} 39. Nf5 {[%emt 0:00:34]} Nf6 {[%emt 0:00:28]} 40. Bg5 {[%emt 0:00:14]} Bd8 {[%emt 0:00:22]} 41. Nh6 {[%emt 0:00:40]} h3 {[%emt 0:00:32]} 42. Nf7 {[%emt 0:00:17]} Be7 {[%emt 0:00:25]} 43. Bxf6 {[%emt 0:00:47]} Bxf6 {[%emt 0:00:06]} 44. Kg1 {[%emt 0:00:34]} Ke6 {[%emt 0:00:43]} 45. Nh6 {[%emt 0:00:34]} Be5 {[%emt 0:00:11]} 46. g5 {[%emt 0:00:27]} Bf4 {[%emt 0:00:09]} 47. Ng4 {[%emt 0:00:19]} Kf5 {[%emt 0:00:15]} 48. Nh6+ {[%emt 0:00:34]} Kxg5 {[%emt 0:00:18]} 49. Nf7+ {[%emt 0:00:08]} Kf6 {[%emt 0:00:15]} 50. Nd8 {[%emt 0:00:18]} b6 {[%emt 0:00:53]} 51. Nc6 {[%emt 0:00:14]} a5 {[%emt 0:00:27]} 52. b4 {[%emt 0:00:38]} axb4 {[%emt 0:00:23]} 53. Nxb4 {[%emt 0:00:12]} Ke5 {[%emt 0:00:43]} 54. Nd5 {[%emt 0:00:16]} c6 {[%emt 0:00:12]} 55. Nb4 {[%emt 0:00:27]} Kd4 {[%emt 0:00:28]} 56. Nxc6+ {[%emt 0:00:21]} Kxc4 {[%emt 0:00:07]} 57. a4 {[%emt 0:01:50]} Kc5 {[%emt 0:01:02]} 58. Ne7 {[%emt 0:00:42]} Be5 {[%emt 0:00:14]} 59. Nf5 {[%emt 0:00:33]} Kb4 {[%emt 0:00:21]} 60. Ne7 {[%emt 0:00:25]} Kxa4 {[%emt 0:00:12]} 61. Kf2 0-1

[Event "HUN-chT Youth-Children 2018"]
[Site "Zalakaros"]
[Date "2018.07.27"]
[Round "3"]
[White "Bako, Martin"]
[Black "Kovacs, Gabor Etele"]
[Result "1/2-1/2"]
[ECO "D44"]
[WhiteElo "1852"]
[BlackElo "1999"]
[Annotator "NA"]
[PlyCount "59"]
[EventDate "2018.07.26"]
[EventType "team-tourn"]
[EventCountry "HUN"]
[SourceTitle "playchess.com"]
[Source "ChessBase"]
[SourceQuality "1"]
[TimeControl "5400+30"]

1. d4 {[%emt 0:00:00]} d5 {[%emt 0:00:10]} 2. c4 {[%emt 0:00:00]} e6 {[%emt 0:00:09]} 3. Nc3 {[%emt 0:01:00]} c6 {[%emt 0:00:04]} 4. Nf3 {[%emt 0:00:16]} Nf6 {[%emt 0:00:16]} 5. Bg5 {[%emt 0:00:56]} dxc4 {[%emt 0:00:18]} 6. e4 {[%emt 0:00:23]} b5 {[%emt 0:00:24]} 7. e5 {[%emt 0:00:13]} h6 {[%emt 0:00:10]} 8. Bh4 {[%emt 0:00:03]} g5 {[%emt 0:00:10]} 9. Nxg5 {[%emt 0:00:05]} hxg5 {[%emt 0:00:10]} 10. Bxg5 {[%emt 0:00:04]} Be7 {[%emt 0:00:20]} 11. exf6 {[%emt 0:06:26]} Bxf6 {[%emt 0:00:03]} 12. Bxf6 {[%emt 0:00:06]} Qxf6 {[%emt 0:00:06]} 13. Ne4 {[%emt 0:02:04] D44: Damengambit (Botwinnik-Variante)} (13. g3 Na6 14. Bg2 Bb7 15. Ne4 Qe7 16. O-O O-O-O 17. h4 c5 18. a4 Rxd4 19. Qe2 b4 20. Rad1 Rhd8 21. Rxd4 Rxd4 22. Rc1 Bd5 23. Nd2 Nb8 24. Bxd5 Rxd5 25. Nxc4 {1-0 (43) Yu,Y (2751)-Dreev,A (2653) Riadh 2017}) 13... Qe7 {[%emt 0:01:23]} 14. g3 {[%emt 0:05:31]} Na6 {[%emt 0:00:57]} 15. a3 {[%emt 0:06:16]} Bb7 {[%emt 0:01:52]} 16. Bg2 $146 {[%emt 0:03:32]} ({Vorgänger:} 16. Qe2 O-O-O 17. Rd1 c5 18. Bg2 f5 19. O-O Qh7 20. h4 Bxe4 21. Bxe4 fxe4 22. a4 Qxh4 {0-1 (22) Schenk,U-Rosenberger,F Porz 1994}) 16... O-O-O {[%emt 0:01:05]} 17. O-O {[%emt 0:08:04]} f5 {[%emt 0:01:56]} 18. Nd2 {[%emt 0:04:38]} Rxd4 {[%emt 0:14:50]} 19. Qe2 {[%emt 0:00:27]} Rhd8 {[%emt 0:15:13]} 20. Nf3 {[%emt 0:07:43]} Re4 {[%emt 0:02:36]} 21. Qc2 {[%emt 0:00:44]} Nc5 {[%emt 0:01:48]} 22. Rae1 {[%emt 0:11:11]} Rxe1 {[%emt 0:11:01]} 23. Rxe1 {[%emt 0:00:07]} Qd6 {[%emt 0:01:27]} (23... Nd3 $17 24. Re2 c5) 24. Ng5 {[%emt 0:06:01] [#]} Qd2 $1 {[%emt 0:02:36]} 25. Qxd2 {[%emt 0:02:00]} Rxd2 {[%emt 0:00:02]} 26. Nxe6 {[%emt 0:12:47]} Nxe6 {[%emt 0:10:15]} 27. Rxe6 {[%emt 0:00:01]} Rxb2 {[%emt 0:08:43]} 28. Kf1 {[%emt 0:08:03]} c3 {[%emt 0:01:31]} 29. Re1 {[%emt 0:04:02]} (29. Bh3 $142 Kc7 30. Re1) 29... c2 $17 {[%emt 0:00:26]} (29... b4 $19 30. axb4 Ba6+ 31. Kg1 c2) 30. Bh3 {[%emt 0:00:33]} 1/2-1/2